Cogmind - Beta 10.1 *** ADVENTURER MODE // 2020.10.23 @ 18:50:57 Player: Arctifire Result: Self-destructed Performance ------------- Evolutions (2) 1000 Regions Visited (5) 1000 Robots Destroyed (18) 90 Value Destroyed (702) 702 Prototype IDs (23) 460 Alien Tech Used (0) 0 Bonus (300) 300 TOTAL SCORE: 3552 Bonus ------- Aligned with FarCom 300 Cogmind --------- Core Integrity 526/550 Matter 258/300 Energy 160/160 System Corruption 0% Temperature Cool (120) Movement Rolling (160) Ox6 Location -8/Materials Parts ------- > --- POWER (1) -------- Light Nuclear Core > --- PROPULSION (2) --- Advanced Treads Compact Wheel > --- UTILITY (4) ------ Humpback Advanced Signal Interpreter Improved Weapon Shielding > --- WEAPON (4) ------- Beamcaster Particle Cannon Bore Cannon Welding Torch > --- INVENTORY (24) --- Cesium-ion Thruster Improved Heat Sink High-capacity Storage Unit High-capacity Matter Pod (200) High-capacity Matter Pod (200) Advanced Visual Processing Unit Sensor Array Weapon Shielding Supersonic Drone Bay (1/1) EM Shotgun AWS/Thermal Particle Cannon AWS/Autocannon Hammer Mining Claw Peak State ------------ > --- POWER ------------ Light Nuclear Core > --- PROPULSION ------- Advanced Treads Compact Wheel > --- UTILITY ---------- Humpback Advanced Signal Interpreter Improved Weapon Shielding > --- WEAPON ----------- Beamcaster Particle Cannon Bore Cannon Welding Torch > --- INVENTORY -------- Improved Heat Sink High-capacity Storage Unit High-capacity Matter Pod High-capacity Matter Pod Advanced Visual Processing Unit Sensor Array Weapon Shielding Supersonic Drone Bay EM Shotgun AWS/Thermal Particle Cannon AWS/Autocannon Hammer Mining Claw [Rating: 35] Favorites ----------- Power Light Nuclear Core Engine Light Ion Engine Power Core Light Nuclear Core Propulsion Compact Wheel Treads Advanced Treads Wheel Compact Wheel Hover Unit Backup Propulsion I Utility Humpback Device Sensor Array Storage Humpback Processor Improved Signal Interpreter Protection Improved Weapon Shielding Weapon Bore Cannon Energy Gun EM Shotgun Energy Cannon Particle Cannon Ballistic Gun Assault Rifle Ballistic Cannon Bore Cannon Special Weapon Welding Torch Impact Weapon Hammer Slashing Weapon Mining Claw Build | -11 -10 -10 -10 -9 -8 ------- Run | Scr Mat Min Exi Min Mat Slots Evolved 4 | . . . . . 4 Power . | . . . . . . Propulsion . | . . . . . . Utility 2 | . . . . . 2 Weapon 2 | . . . . . 2 Parts Attached 27 | 6 9 3 2 1 6 Power 3 | 1 1 1 . . . Engine 1 | 1 . . . . . Core 2 | . 1 1 . . . Reactor . | . . . . . . Propulsion 4 | 2 1 . . . 1 Treads 1 | . . . . . 1 Leg . | . . . . . . Wheel 3 | 2 1 . . . . Hover . | . . . . . . Flight . | . . . . . . Utility 8 | 1 3 . 2 . 2 Device 1 | . 1 . . . . Storage 3 | 1 . . 2 . . Processor 2 | . 1 . . . 1 Hackware . | . . . . . . Protection 2 | . 1 . . . 1 Artifact . | . . . . . . Weapon 12 | 2 4 2 . 1 3 Energy Gun 5 | 1 2 1 . 1 . Energy Cannon 2 | . . . . . 2 Ballistic Gun 1 | 1 . . . . . Ballistic Cannon 1 | . . 1 . . . Launcher . | . . . . . . Special Weapon 1 | . . . . . 1 Impact Weapon 1 | . 1 . . . . Slashing Weapon 1 | . 1 . . . . Piercing Weapon . | . . . . . . Special Melee Weapon . | . . . . . . Unidentified Prototypes . | . . . . . . Parts Lost 2 | . . 1 . 1 . Power . | . . . . . . Propulsion 1 | . . . . 1 . Utility . | . . . . . . Weapon 1 | . . 1 . . . Highest Loss Streak 1 | . . 1 . 1 . Average Slot Usage (%) 88 | . 94 99 91 84 82 Engine 1 | . 12 . . . . Core 11 | . 1 14 14 14 9 Treads 1 | . . . . . 5 Wheel 22 | . 28 28 28 27 9 Device 2 | . 6 14 2 . . Storage 9 | . 7 . 11 14 9 Processor 5 | . 8 14 6 . 7 Protection 2 | . . . . . 8 Energy Gun 14 | . 21 20 14 14 9 Energy Cannon 2 | . . . . . 7 Ballistic Cannon 10 | . . 7 14 14 9 Special Weapon 2 | . . . . . 8 Naked Turns . | . . . . . . Heaviest Build 106 | 11 13 18 97 99 106 Greatest Support 26 | 26 26 26 26 26 16 Greatest Overweight (x) 6 | . . . 3 6 6 Average Overweight (x) 2 | . . . 1 3 6 Largest Inventory Capacity 24 | 6 6 4 24 24 24 Average Capacity 17 | 5 5 4 17 24 24 Most Carried 18 | 2 6 4 12 15 18 Average Carried 10 | 1 3 4 9 12 16 Final Capacity 24 | 6 4 4 24 24 24 Final Carried 18 | 2 4 4 12 15 18 Class Distribution -------------------- 43% | Hauler-Mutant 33% | Mutant 22% | Hauler-Skirmisher Dominant Class ---------------- Mutant | -10/Materials Mutant | -10/Mines Hauler-Mutant | -10/Exiles Hauler-Mutant | -9/Mines Hauler-Skirmisher | -8/Materials Resources | -11 -10 -10 -10 -9 -8 ----------- Run | Scr Mat Min Exi Min Mat Matter Collected 634 | 192 111 72 20 145 94 Remotely . | . . . . . . Salvage Created 652 | . 156 36 . 375 85 Parts 39 | . 12 . . 20 7 Haulers Intercepted . | . . . . . . Recyclers Shooed . | . . . . . . Parts Field Recycled . | . . . . . . Retrieved Matter . | . . . . . . Parts Self-Destructed . | . . . . . . Prevented . | . . . . . . Kills | -11 -10 -10 -10 -9 -8 ------- Run | Scr Mat Min Exi Min Mat Combat Hostiles Destroyed 17 | . 4 2 . 9 2 Melee 1 | . 1 . . . . Guns 10 | . 3 2 . 5 . Cannons 6 | . . . . 4 2 Classes Destroyed 5 | . 1 1 . 2 1 Builder 1 | . . . . . 1 Grunt 14 | . 4 1 . 7 2 Brawler 1 | . . . . 1 . Duelist 1 | . . . . 1 . Demolisher 1 | . . 1 . . . Best Kill Streak 3 | . 3 1 . 3 2 Combat Bots Only 3 | . 3 1 . 3 1 Max Kills in Single Turn 1 | . 1 1 . 1 1 Gunslinging . | . . . . . . Exploded . | . . . . . . Melee 1 | . 1 . . . . Uniques/NPCs Destroyed . | . . . . . . Combat | -11 -10 -10 -10 -9 -8 -------- Run | Scr Mat Min Exi Min Mat Damage Taken 473 | . 123 65 . 160 125 Core 128 | . 32 20 . 52 24 Absorbed by Shields . | . . . . . . Core Remaining (%) 79 | 100 . . . 58 . Volleys Fired 43 | . 5 5 . 23 10 Largest 3 | . 2 2 . 2 3 Hottest 145 | . 90 110 . 132 145 Shots Fired 72 | . 10 10 . 31 21 Gun 33 | . 10 10 . 13 . Cannon 38 | . . . . 18 20 Launcher . | . . . . . . Special 1 | . . . . . 1 Kinetic 28 | . . . . 18 10 Thermal 25 | . . 4 . 10 11 Explosive . | . . . . . . Electromagnetic 19 | . 10 6 . 3 . Robot Hit Streak 20 | . 18 20 . 15 7 Robot Miss Streak 3 | . . 1 . 3 3 Penetration Max 1 | . . . . 1 . Secondary Targets 2 | . 2 . . . . Max Gunslinging Chain 1 | . 1 . . . . Shots Hit Robots 59 | . 14 9 . 22 14 Core Hits 36 | . 10 6 . 12 8 Critical Hits 6 | . . . . 4 2 Critical Kills 3 | . . . . 1 2 Critical Parts Destroyed 3 | . . . . 3 . Melee Attacks 5 | . 5 . . . . Impact . | . . . . . . Slashing 5 | . 5 . . . . Piercing . | . . . . . . Sneak Attacks . | . . . . . . Combat Hostiles . | . . . . . . Follow-up Attacks . | . . . . . . Damage Inflicted 1207 | . 366 120 . 457 264 Guns 491 | . 175 120 . 196 . Cannons 521 | . . . . 261 260 Explosions 71 | . 71 . . . . Melee 120 | . 120 . . . . Ramming . | . . . . . . Kinetic 379 | . . . . 261 118 Thermal 427 | . 71 45 . 165 146 Explosive . | . . . . . . Electromagnetic 281 | . 175 75 . 31 . Impact . | . . . . . . Slashing 120 | . 120 . . . . Piercing . | . . . . . . Highest Corruption . | . . . . . . Average Corruption . | . . . . . . Corruption Purged . | . . . . . . Overload Shots . | . . . . . . Overflow Damage 17 | . 17 . . . . Projectiles . | . . . . . . Explosions 13 | . 13 . . . . Melee 4 | . 4 . . . . Knockbacks 3 | . . . . 1 2 Impact . | . . . . . . Kinetic 3 | . . . . 1 2 Secondary . | . . . . . . Self-Inflicted Damage 34 | . 34 . . . . Shots 1 | . 1 . . . . Rammed . | . . . . . . Targets Rammed . | . . . . . . Kicked . | . . . . . . Crushed . | . . . . . . Highest Temperature 280 | . 182 162 . 280 189 Average Temperature 94 | . 98 65 . 115 59 Received Heat Transfer 273 | . 66 36 . 81 90 Effects 2 | . . . . 2 . Interference 2 | . . . . 2 . Siege Activations . | . . . . . . Robots Corrupted . | . . . . . . Combat Hostiles . | . . . . . . Parts Fried . | . . . . . . Impact Corruptions . | . . . . . . Robots Melted . | . . . . . . Combat Hostiles . | . . . . . . Parts Melted 1 | . . . . 1 . Heat Transferred 791 | . 100 111 . 296 284 Parts Sabotaged . | . . . . . . Parts Stolen . | . . . . . . Parts Stripped . | . . . . . . Power Chain Reactions 1 | . 1 . . . . Missiles Intercepted . | . . . . . . Alert | -11 -10 -10 -10 -9 -8 ------- Run | Scr Mat Min Exi Min Mat Peak Influence 157 | . 157 106 . 149 95 Initial 51 | . . 51 . . . Average 42 | . 57 101 . 27 29 Maximum Alert Level . | . . . . . . Low Security (%) 100 | 100 100 100 . 100 100 Level 1 . | . . . . . . Level 2 . | . . . . . . Level 3 . | . . . . . . Level 4 . | . . . . . . Level 5 . | . . . . . . High Security . | . . . . . . Max Security . | . . . . . . Squads Dispatched 2 | . . . . . 2 Investigation 1 | . . . . . 1 Extermination . | . . . . . . Reinforcement 1 | . . . . . 1 Assault . | . . . . . . Garrison . | . . . . . . Intercept . | . . . . . . Construction Impeded . | . . . . . . Haulers Reinforced . | . . . . . . Stealth | -11 -10 -10 -10 -9 -8 --------- Run | Scr Mat Min Exi Min Mat Distress Signals 3 | . . . . . 3 Communications Jammed . | . . . . . . Distress Signals . | . . . . . . Times Spotted 42 | . 10 4 . 9 19 Peak Tracking Total 7 | . 5 2 . 3 7 Tactical Retreats 5 | . 3 . . . 2 Traps | -11 -10 -10 -10 -9 -8 ------- Run | Scr Mat Min Exi Min Mat Traps Triggered 1 | . . . . . 1 Indirectly . | . . . . . . Trap Hack Attempts . | . . . . . . Triggered . | . . . . . . Disarmed . | . . . . . . Reprogrammed . | . . . . . . Reused . | . . . . . . Traps Extracted . | . . . . . . Installed . | . . . . . . Triggered . | . . . . . . Machines | -11 -10 -10 -10 -9 -8 ---------- Run | Scr Mat Min Exi Min Mat Machines Disabled 2 | . . . . 2 . Max in Single Turn 1 | . . . . 1 . Garrison Access 1 | . . . . . 1 Machines Sabotaged . | . . . . . . Garrisons Compromised . | . . . . . . Overloaded Fab Kills . | . . . . . . Fab Network Shutdowns . | . . . . . . Hacking | -11 -10 -10 -10 -9 -8 --------- Run | Scr Mat Min Exi Min Mat Machines Accessed 5 | . 1 . 1 . 3 Terminals 2 | . 1 . . . 1 Fabricators . | . . . . . . Repair Stations 1 | . . . . . 1 Recycling Units . | . . . . . . Scanalyzers . | . . . . . . Garrison Access 1 | . . . . . 1 Total Hacks 9 | . 1 . 1 . 7 Successful 4 | . 1 . 1 . 2 Failed 5 | . . . . . 5 Catastrophic . | . . . . . . Database Lockouts . | . . . . . . Manual 3 | . 1 . 1 . 1 Terminals 2 | . 1 . . . 1 Fabricators . | . . . . . . Repair Stations 3 | . . . . . 3 Recycling Units . | . . . . . . Scanalyzers . | . . . . . . Garrison Access 3 | . . . . . 3 Terminal Hacks 2 | . 1 . 1 . . Branch Access Points 1 | . 1 . . . . EX-Prototype ID Bank 1 | . . . 1 . . Fabricator Hacks . | . . . . . . Repair Station Hacks 1 | . . . . . 1 Refit 1 | . . . . . 1 Recycling Unit Hacks . | . . . . . . Scanalyzer . | . . . . . . Garrison Access Hacks 1 | . . . . . 1 Seal Access 1 | . . . . . 1 Unauthorized Hacks . | . . . . . . Terminals . | . . . . . . Fabricators . | . . . . . . Repair Stations . | . . . . . . Recycling Units . | . . . . . . Scanalyzers . | . . . . . . Garrison Access . | . . . . . . Data Cores Recovered . | . . . . . . Used . | . . . . . . Hacking Detections 2 | . . . . . 2 Full Trace Events . | . . . . . . Feedback Events . | . . . . . . Feedback Blocked . | . . . . . . Robot Schematics Acquired . | . . . . . . Robots Built . | . . . . . . Matter . | . . . . . . Time . | . . . . . . Total Robot Build Rating . | . . . . . . Part Schematics Acquired . | . . . . . . Parts Built . | . . . . . . Matter . | . . . . . . Time . | . . . . . . Total Part Build Rating . | . . . . . . Parts Repaired . | . . . . . . Time . | . . . . . . Parts Recycled . | . . . . . . Recycled Matter . | . . . . . . Retrieved Matter . | . . . . . . Retrieved Components . | . . . . . . Parts Scanalyzed . | . . . . . . Part Schematics Acquired . | . . . . . . Parts Damaged . | . . . . . . Bothacking | -11 -10 -10 -10 -9 -8 ------------ Run | Scr Mat Min Exi Min Mat Used RIF Installer . | . . . . . . Robots Hacked . | . . . . . . Non-combat . | . . . . . . Combat . | . . . . . . Robot Hacks Applied . | . . . . . . Relay Couplers Released . | . . . . . . Robots Rewired . | . . . . . . Allies Hacked . | . . . . . . Hacks Repelled . | . . . . . . Allies | -11 -10 -10 -10 -9 -8 -------- Run | Scr Mat Min Exi Min Mat Total Allies 1 | . . . . 1 . Largest Group 1 | . . . . 1 . Highest-Rated Group 31 | . . . . 31 . Highest-Rated Ally 31 | . . . . 31 . Total Orders . | . . . . . . Ally Attacks 14 | . . . . 14 . Total Damage 150 | . . . . 150 . Kills . | . . . . . . Allies Corrupted . | . . . . . . Allies Melted . | . . . . . . Intel | -11 -10 -10 -10 -9 -8 ------- Run | Scr Mat Min Exi Min Mat Robot Analysis Total . | . . . . . . Derelict Logs Recovered 2 | . . 1 . 1 . Drone Launches . | . . . . . . Drone Recoveries . | . . . . . . Exploration | -11 -10 -10 -10 -9 -8 ------------- Run | Scr Mat Min Exi Min Mat Turns Passed 2927 | 62 351 354 542 820 798 Spaces Moved 2132 | 59 307 329 490 516 431 Core 4 | 4 . . . . . Treads . | . . . . . . Legs . | . . . . . . Wheels 2128 | 55 307 329 490 516 431 Hover . | . . . . . . Flight . | . . . . . . Fastest Speed 50 | 50 90 90 90 120 160 Average Speed 115 | 86 90 90 107 121 160 Slowest Speed 160 | 90 90 90 120 160 160 Overloaded Moves . | . . . . . . Propulsion Burnouts . | . . . . . . Robots Hopped . | . . . . . . Cave-ins Triggered . | . . . . . . Exploration Rate (%) 52 | 4 41 69 89 92 21 Regions Visited 5 Branch Regions 3 Pre-discovered Areas . | . . . . . . Known Exits Taken 2 | . 1 1 . . . Unknown Exits Taken 3 | 1 . . 1 1 . Scrap Searched 3 | . . 1 . 2 . Spaces Dug . | . . . . . . Terrain Destroyed 15 | . 2 . . 9 4 Melee . | . . . . . . Projectile 13 | . . . . 9 4 AOE 2 | . 2 . . . . Terrain Rammed . | . . . . . . Walls Destroyed . | . . . . . . Machines Disabled . | . . . . . . Actions | -11 -10 -10 -10 -9 -8 --------- Run | Scr Mat Min Exi Min Mat Total 2507 | 66 363 376 506 680 516 Wait 263 | . 21 38 . 138 66 Move 2127 | 58 306 328 489 515 431 Hop . | . . . . . . Pick Up 23 | 2 5 . 12 2 2 Fast Attach 22 | 6 7 2 1 1 5 Attach 2 | . 1 . 1 . . Detach 3 | . 2 . . 1 . Swap 3 | . 1 1 . . 1 Drop 16 | . 10 2 3 . 1 Fire 43 | . 5 5 . 23 10 Melee 5 | . 5 . . . . Ram . | . . . . . . Kick . | . . . . . . Crush . | . . . . . . Escape Stasis . | . . . . . . Rewire . | . . . . . . Trap . | . . . . . . Miscellaneous . | . . . . . . Route ------- -11/Scrapyard -10/Materials (discovered 2 exits: *Min x2) -10/Mines (discovered 2 exits: *Mat / *Exi) -10/Exiles -9/Mines -8/Materials (discovered 2 exits: Fac / Sto) History --------- Turn | Location | Event 16 | -11/Scrapyard | Discovered new exit (range 15) 63 | -11/Scrapyard | Entered Materials 312 | -10/Materials | Build established: Mutant 320 | -10/Materials | Identified exit to Mines 414 | -10/Materials | Entered Mines 415 | -10/Mines | Assembled infested the area 420 | -10/Mines | Assisted by a Guerilla fighting off Assembled 476 | -10/Mines | Received a Rocket Launcher from a helpful Derelict 488 | -10/Mines | Learned 2 Materials zone layouts 574 | -10/Mines | Discovered new exit (range 6) 625 | -10/Mines | Identified exit to Materials 761 | -10/Mines | Deemed a non-threat by the Exiles lab entrance 762 | -10/Mines | Discovered new exit (range 5) 766 | -10/Mines | Identified exit to Exiles 768 | -10/Mines | Entered Exiles 794 | -10/Exiles | Met 8R-AWN 805 | -10/Exiles | Met EX-HEX 834 | -10/Exiles | Met EX-BIN 845 | -10/Exiles | Aligned with FarCom system 846 | -10/Exiles | Given EX-Vault access code 869 | -10/Exiles | Opened EX-Vault 877 | -10/Exiles | Found AWS/Thermal 881 | -10/Exiles | Found AWS/Autocannon 884 | -10/Exiles | Found Supersonic Drone Bay 912 | -10/Exiles | Warned to stay clear of 0b10 Research branches 984 | -10/Exiles | Met EX-DEC 1090 | -10/Exiles | Visited The Gauntlet 1294 | -10/Exiles | Discovered new exit (range 10) 1296 | -10/Exiles | Build established: Hauler-Mutant 1310 | -10/Exiles | Stole three prototypes: Supersonic Drone Bay, AWS/Thermal, AWS/Autocannon 1310 | -10/Exiles | Entered Mines 1464 | -9/Mines | Learned location of 1 exit from Materials 1773 | -9/Mines | Received a Mining Laser from a helpful Derelict 2114 | -9/Mines | Discovered new exit (range 8) 2130 | -9/Mines | Entered Materials 2130 | -8/Materials | Evolved 4 slots: Utility x2, Weapon x2 2131 | -8/Materials | Identified exit to Factory 2132 | -8/Materials | Identified exit to Storage 2565 | -8/Materials | Build established: Hauler-Skirmisher 2928 | -8/Materials | Self-destructed Last Messages --------------- 02353_ R-06 Scavenger collects Lgt. Ion Engine. 02354_ K-01 Serf collects debris. 02358_ R-06 Scavenger collects Aluminum Leg. 02403_ Acquired Adv. Treads. 02564_ Acquired 54 matter. 02571_ K-01 Serf cleans the Atomic Centrifuge. 02620_ Connecting with Garrison Access... >>Seal Access door sealed. 02744_ Acquired Adv. Visual Processing Unit. 02748_ Acquired Cesium-ion Thruster. 02789_ HV Slug penetrates W-25 Informer. 02859_ U-05 Engineer builds a Wall. 02872_ HV Slug penetrates W-25 Informer. 02872_ W-25 Informer knocked back. 02872_ W-25 Informer distress signal alerts nearby ally. 02874_ U-05 Engineer builds a Door. 02891_ W-25 Informer distress signal alerts nearby ally. 02891_ ALERT: Hostiles spotted, dispatching reinforcements to Terminal M006. Map ----- +----------------------------------------------------+ | ?????????????????????????????????????????????????? | | ?????????????????????????????????????????????????? | | ?????????????????????????????????????????????????? | | ?????????????????????????????????????????????????? | | ?????????????????????????????????????????????????? | | ?????????????????????????????????????????????????? | | ?????????????????????????????????????????????????? | | ?????????????????????????????????????????????????? | | ?????????????????????????????????????????????????? | | ?????????????????????????????????????????????????? | | ?????????????????????????????????????????????????? | | ???????????????????????????????????????????????